bitfinex/quotes_BTCUSD_20250224
["timestamp","ask_amount","ask_price","bid_price","bid_amount"]
[1740423741585,0.01530381,94515.0,94491.0,0.10264569]
[1740423741787,0.03441046,94523.0,94502.0,0.211634]
[1740423742020,0.15,94521.0,94504.0,0.158723]
[1740423742176,0.1587,94518.0,94505.0,0.10264569]
[1740423742375,0.15,94521.0,94505.0,0.10264569]
[1740423742376,0.01551983,94521.0,94506.0,0.07768123]
[1740423742581,0.0012487,94529.0,94507.0,0.10264569]
[1740423742783,0.0012487,94529.0,94508.0,0.211622]
[1740423742995,0.15,94524.0,94509.0,0.10264569]
[1740423743194,0.01530329,94524.0,94509.0,0.10264569]
[1740423743396,0.0012487,94529.0,94509.0,0.10264569]
[1740423743640,0.0012487,94529.0,94510.0,0.00148112]
[1740423743801,0.0012487,94529.0,94511.0,0.10264569]
[1740423744002,0.0012487,94529.0,94516.0,0.158701]
[1740423744204,0.0012487,94529.0,94517.0,0.10264569]
[1740423744804,0.00075581,94528.0,94517.0,0.10264569]
[1740423744925,0.15943881,94528.0,94517.0,0.10264569]
[1740423745284,0.15,94527.0,94517.0,0.10264569]
[1740423745438,0.15,94525.0,94517.0,0.10264569]
[1740423745642,0.00075581,94528.0,94517.0,0.10264569]
[1740423745867,0.15943981,94528.0,94518.0,0.3224]
[1740423746065,0.00075581,94528.0,94519.0,0.10264569]
[1740423746264,0.0008495,94523.0,94519.0,0.10264569]
[1740423747741,0.21159,94522.0,94518.0,0.3224]
[1740423747944,0.158698,94519.0,94518.0,0.42504569]
[1740423748937,0.158698,94519.0,94518.0,0.31252]
[1740423749742,0.158698,94519.0,94518.0,0.31852]
[1740423749956,0.158698,94519.0,94518.0,0.006]
[1740423750910,0.158699,94518.0,94517.0,0.002]
[1740423751114,0.0008495,94523.0,94517.0,0.10464569]
[1740423751313,0.158698,94519.0,94518.0,0.10364569]
[1740423751537,0.0008495,94523.0,94518.0,0.10364569]
[1740423751746,0.158698,94519.0,94518.0,0.10264569]
[1740423751937,0.0008495,94523.0,94518.0,0.10264569]
[1740423752194,0.15,94521.0,94518.0,0.10264569]
[1740423752356,0.158698,94519.0,94518.0,0.10264569]
[1740423752563,0.158699,94518.0,94517.0,0.002]
[1740423753725,0.308699,94518.0,94517.0,0.002]
[1740423755115,0.308699,94518.0,94517.0,0.004]
[1740423755774,0.40313185,94518.0,94517.0,0.004]
[1740423756247,0.308699,94518.0,94517.0,0.004]
[1740423756396,0.308725,94503.0,94502.0,7.307e-05]
[1740423758008,0.308725,94503.0,94502.0,0.00177087]
[1740423758504,0.45239872,94503.0,94502.0,8.7e-07]
[1740423758770,0.45239872,94503.0,94463.0,0.0814]
[1740423759026,0.15879,94464.0,94463.0,0.0814]
[1740423759255,0.158789,94465.0,94463.0,0.50644569]
[1740423759502,0.158789,94465.0,94464.0,0.10264569]
[1740423760016,0.158788,94466.0,94464.0,0.10264569]
[1740423760209,0.00013,94466.0,94464.0,0.10264569]
[1740423760441,0.158788,94465.0,94464.0,0.10264569]
[1740423761739,0.158788,94465.0,94464.0,0.10864569]
[1740423762160,0.158788,94465.0,94464.0,0.10264569]
[1740423762363,0.158788,94465.0,94464.0,0.11564569]
[1740423763150,0.158788,94465.0,94464.0,0.3354]
[1740423763556,0.158788,94465.0,94464.0,0.013]
[1740423763557,0.308788,94465.0,94464.0,0.013]
[1740423764387,0.308788,94465.0,94464.0,0.006]
[1740423764621,0.158805,94455.0,94454.0,0.0807]
[1740423764813,0.158805,94455.0,94454.0,0.18334569]
[1740423765228,0.1588,94459.0,94454.0,0.18334569]
[1740423765398,0.00013,94466.0,94464.0,0.002]
[1740423766219,0.15013,94466.0,94464.0,0.002]
[1740423766421,0.158788,94465.0,94464.0,0.002]
[1740423766947,0.158917,94466.0,94455.0,0.11200569]
[1740423767175,0.15879,94464.0,94455.0,0.11200569]
[1740423767370,0.158793,94463.0,94455.0,0.11200569]
[1740423767773,0.00013,94466.0,94465.0,0.158788]
[1740423767928,0.00013,94466.0,94465.0,0.26143369]
[1740423768134,0.00013,94466.0,94465.0,0.34233369]
[1740423768531,0.00013,94466.0,94465.0,0.71353369]
[1740423768728,0.00013,94466.0,94465.0,0.71253369]
[1740423769687,0.00013,94466.0,94465.0,0.72707454]
[1740423769885,0.0453,94526.0,94467.0,0.0772]
[1740423770124,0.00097885,94519.0,94480.0,0.0772]
[1740423770314,0.158725,94503.0,94492.0,0.158742]
[1740423770664,0.211614,94512.0,94493.0,0.42504569]
[1740423770866,0.15872,94506.0,94498.0,0.158732]
[1740423771066,0.211599,94518.0,94499.0,0.10264569]
[1740423771244,0.01489141,94519.0,94500.0,0.4045]
[1740423771449,0.158713,94511.0,94503.0,0.158725]
[1740423771596,0.01489141,94519.0,94504.0,0.10264569]
[1740423771795,0.15,94518.0,94506.0,0.211626]
[1740423772048,0.158701,94517.0,94508.0,0.158716]
[1740423772247,0.001,94518.0,94507.0,0.10264569]
[1740423772662,0.158715,94509.0,94507.0,0.10264569]
[1740423772865,0.158713,94511.0,94507.0,0.10264569]
[1740423773068,0.001,94518.0,94507.0,0.10264569]
[1740423773275,0.001,94518.0,94507.0,0.15164569]
[1740423773495,0.158701,94517.0,94511.0,0.158711]
[1740423773679,0.00097885,94519.0,94512.0,0.42504569]
[1740423774161,0.00097885,94519.0,94518.0,0.158699]
[1740423774417,0.00097885,94519.0,94518.0,0.34084469]
[1740423774888,0.00097885,94519.0,94518.0,0.66324469]
[1740423775382,0.00097885,94519.0,94518.0,0.66424469]
[1740423775620,0.00097885,94519.0,94518.0,0.67660469]
[1740423776799,0.00097885,94519.0,94518.0,0.67360469]
[1740423777057,0.00097885,94519.0,94518.0,0.68060469]
[1740423777344,0.00097885,94519.0,94518.0,1.23264554]
[1740423777566,0.00097885,94519.0,94518.0,1.23164554]
[1740423777800,0.00097885,94519.0,94518.0,1.23764554]
[1740423779057,0.00097885,94519.0,94518.0,1.28624554]
[1740423779763,0.00097885,94519.0,94518.0,1.27924554]
[1740423779999,0.00097885,94519.0,94518.0,1.28624554]
[1740423780509,0.00097885,94519.0,94518.0,1.27924554]
[1740423780749,0.0008495,94523.0,94522.0,0.158693]
[1740423780981,0.0008495,94523.0,94522.0,0.57156011]
[1740423781183,0.0008495,94523.0,94522.0,0.57007954]
[1740423781737,0.211447,94587.0,94546.0,0.158652]
[1740423781944,0.15,94568.0,94546.0,0.66869769]
[1740423782204,0.17305938,94563.0,94546.0,0.66869769]
[1740423782468,0.158626,94562.0,94546.0,0.51004569]
[1740423782693,0.158629,94560.0,94546.0,0.51004569]
[1740423782912,0.22593438,94563.0,94546.0,0.51004569]
[1740423783133,0.158631,94559.0,94546.0,0.51004569]
[1740423783356,0.15863,94560.0,94546.0,0.51004569]
[1740423783855,0.211503,94562.0,94546.0,0.51004569]
[1740423784059,0.158629,94560.0,94546.0,0.51004569]
[1740423784270,0.01443438,94563.0,94546.0,0.51004569]
[1740423784471,0.01443438,94563.0,94546.0,0.52404569]
[1740423784753,0.211506,94560.0,94546.0,0.52404569]
[1740423784995,0.01443438,94563.0,94546.0,0.72789769]
[1740423785704,0.01443438,94563.0,94546.0,0.72089769]
[1740423786653,0.01443438,94563.0,94546.0,0.71389769]
[1740423786892,0.01443438,94563.0,94546.0,0.72089769]
[1740423787123,0.01443438,94563.0,94546.0,0.72789769]
[1740423787467,0.01443438,94563.0,94546.0,0.71389769]
[1740423787742,0.01443438,94563.0,94546.0,0.72789769]
[1740423788213,0.01454085,94613.0,94548.0,0.211532]
[1740423788454,0.15,94580.0,94550.0,0.10264569]
[1740423788690,0.15,94580.0,94567.0,0.0786]
[1740423788941,0.15,94580.0,94568.0,0.42504569]
[1740423789174,0.00043318,94583.0,94568.0,0.42504569]
[1740423790142,0.158609,94573.0,94568.0,0.42504569]
[1740423790354,0.158609,94572.0,94568.0,0.42504569]
[1740423790590,0.158609,94572.0,94568.0,0.42704569]
[1740423791032,0.158614,94569.0,94568.0,0.42504569]
[1740423791525,0.158614,94569.0,94568.0,0.43104569]
[1740423791958,0.158614,94569.0,94568.0,0.43404569]
[1740423792239,0.158614,94569.0,94568.0,0.3314]
[1740423792901,0.158614,94569.0,94568.0,0.3254]
[1740423793139,0.158614,94569.0,94568.0,0.3314]
[1740423793379,0.158614,94569.0,94568.0,0.3284]
[1740423793601,0.158614,94569.0,94568.0,0.3254]
[1740423793848,0.158614,94569.0,94568.0,0.3264]
[1740423794319,0.158614,94569.0,94568.0,0.3284]
[1740423794732,0.158614,94569.0,94568.0,0.006]
[1740423796025,0.308614,94569.0,94568.0,0.006]
[1740423797249,0.158647,94549.0,94548.0,0.3224]
[1740423797503,0.15,94548.0,94529.0,0.0826]
[1740423797783,0.0039,94557.0,94530.0,0.42504569]
[1740423798023,0.15,94558.0,94530.0,0.42504569]
[1740423798254,0.158664,94539.0,94530.0,0.42504569]
[1740423798497,0.00043318,94539.0,94530.0,0.42504569]
[1740423798749,0.158668,94537.0,94530.0,0.42504569]
[1740423799022,0.00043318,94539.0,94530.0,0.42504569]
[1740423799272,0.158673,94534.0,94530.0,0.42504569]
[1740423799523,0.158674,94533.0,94530.0,0.42504569]
[1740423799772,0.01402635,94535.0,94530.0,0.42504569]
[1740423800003,0.158676,94532.0,94530.0,0.42504569]
[1740423800469,0.158678,94531.0,94530.0,0.42704569]
[1740423800705,0.158675,94533.0,94530.0,0.42504569]
[1740423801182,0.158675,94533.0,94530.0,0.42904569]
[1740423801453,0.158678,94531.0,94530.0,0.42504569]
[1740423802155,0.158678,94531.0,94530.0,0.3224]
[1740423802738,0.158678,94531.0,94530.0,0.3274]
[1740423804193,0.158678,94531.0,94530.0,0.3344]
[1740423804726,0.158678,94531.0,94530.0,0.3274]
[1740423805089,0.158678,94531.0,94530.0,0.3314]
[1740423805511,0.158678,94531.0,94530.0,0.3264]
[1740423805716,0.308678,94531.0,94530.0,0.004]
[1740423805916,0.38330153,94531.0,94530.0,0.006]
[1740423806369,0.308698,94519.0,94518.0,0.0016976]
[1740423806977,0.308698,94519.0,94518.0,6e-07]
[1740423806978,0.353898,94519.0,94518.0,6e-07]
[1740423807930,0.353898,94519.0,94518.0,0.0010006]
[1740423808415,0.308698,94519.0,94518.0,0.0010006]
[1740423808571,0.308698,94519.0,94518.0,6e-07]
[1740423808748,0.311698,94519.0,94518.0,6e-07]
[1740423809122,0.154,94519.0,94518.0,6e-07]
[1740423809289,0.312698,94519.0,94518.0,6e-07]
[1740423809613,0.311698,94519.0,94518.0,6e-07]
[1740423809771,0.313698,94519.0,94518.0,6e-07]
[1740423809975,0.311698,94519.0,94518.0,6e-07]
[1740423810174,0.311698,94519.0,94518.0,0.0020006]
[1740423810377,0.308698,94519.0,94518.0,0.0020006]
[1740423811200,0.309698,94519.0,94518.0,0.0020006]
[1740423811576,0.308698,94519.0,94518.0,0.0020006]
[1740423811774,0.308698,94519.0,94518.0,6e-07]
[1740423811998,0.311698,94519.0,94518.0,6e-07]
[1740423812202,0.314698,94519.0,94518.0,6e-07]
[1740423813572,0.003,94519.0,94518.0,6e-07]
[1740423813757,0.001,94519.0,94518.0,6e-07]
[1740423813952,0.001,94519.0,94518.0,0.1586996]
[1740423814152,0.001,94519.0,94518.0,6e-07]
[1740423814389,0.001,94519.0,94518.0,0.14884629]
[1740423814594,0.001,94519.0,94518.0,0.31694529]
[1740423814792,0.001,94519.0,94518.0,0.40124529]
[1740423815004,0.001,94519.0,94518.0,0.72364529]
[1740423815239,0.15,94551.0,94528.0,0.081]
[1740423815447,0.158666,94538.0,94529.0,0.58372469]
[1740423815645,0.0519,94568.0,94529.0,0.58372469]
[1740423815646,0.0519,94568.0,94529.0,0.42504569]
[1740423815847,0.158663,94540.0,94530.0,0.211573]
[1740423815963,0.211547,94542.0,94531.0,0.10264569]
[1740423816166,0.211547,94542.0,94531.0,0.26132169]
[1740423816369,0.01415268,94543.0,94531.0,0.10264569]
[1740423816785,0.158673,94534.0,94531.0,0.10264569]
[1740423816968,0.211559,94537.0,94531.0,0.10264569]
[1740423817168,0.158673,94534.0,94531.0,0.10664569]
[1740423817374,0.158673,94534.0,94531.0,0.10564569]
[1740423817618,0.158672,94535.0,94531.0,0.10564569]
[1740423818089,0.001,94537.0,94531.0,0.11064569]
[1740423818498,0.158674,94534.0,94531.0,0.10664569]
[1740423818703,0.158674,94534.0,94531.0,0.11064569]
[1740423818885,0.158674,94534.0,94531.0,0.10664569]
[1740423819328,0.001,94537.0,94531.0,0.11064569]
[1740423819485,0.001,94537.0,94531.0,0.10664569]
[1740423819699,0.00043318,94539.0,94531.0,0.10164569]
[1740423819899,0.001,94535.0,94531.0,0.11264569]
[1740423820488,0.211558,94537.0,94531.0,0.10164569]
[1740423820692,0.00043318,94539.0,94532.0,0.158675]
[1740423820884,0.001,94537.0,94533.0,0.10264569]
[1740423821223,0.00043318,94539.0,94534.0,0.3224]
[1740423821431,0.158669,94536.0,94535.0,0.10264569]
[1740423821648,0.158669,94536.0,94535.0,0.10164569]
[1740423821852,0.158671,94535.0,94534.0,0.3224]
[1740423822458,0.1595199,94535.0,94534.0,0.3224]
[1740423823247,0.1595199,94535.0,94534.0,0.3264]
[1740423823868,0.1595199,94535.0,94534.0,0.3314]
[1740423824312,0.1595199,94535.0,94534.0,0.3264]
[1740423824759,0.1605199,94535.0,94534.0,0.3324]
[1740423824979,0.1605199,94535.0,94534.0,0.3284]
[1740423825176,0.0008489,94535.0,94534.0,0.42504569]
[1740423825430,0.0018489,94535.0,94534.0,0.59171869]
[1740423825636,0.0018489,94535.0,94534.0,0.67091869]
[1740423825843,0.0018489,94535.0,94534.0,0.71741869]
[1740423826059,0.0018489,94535.0,94534.0,0.72041869]
[1740423826260,0.0018489,94535.0,94534.0,0.56174569]
[1740423826463,0.0018489,94535.0,94534.0,0.56810569]
[1740423826593,0.0008489,94535.0,94534.0,0.57010569]
[1740423826795,0.0008489,94535.0,94534.0,0.56074569]
[1740423826999,0.0008489,94535.0,94534.0,0.56574569]
[1740423827397,0.0008489,94535.0,94534.0,0.56074569]
[1740423827601,0.0018489,94535.0,94534.0,0.56774569]
[1740423828246,0.1605199,94535.0,94534.0,0.3364]
[1740423831952,0.1605199,94535.0,94534.0,0.3294]
[1740423832253,0.1605199,94535.0,94534.0,0.3314]
[1740423832689,0.39008151,94535.0,94534.0,0.3314]
[1740423833324,0.3105199,94535.0,94534.0,0.009]
[1740423833577,0.3095199,94535.0,94534.0,0.0036976]
[1740423833785,0.3095199,94535.0,94534.0,0.0076976]
[1740423834122,0.3095199,94535.0,94534.0,0.0036976]
[1740423834319,0.3095199,94535.0,94534.0,0.0016976]
[1740423834530,0.3115199,94535.0,94534.0,0.0016976]
[1740423837843,0.40697438,94535.0,94534.0,0.0016976]
[1740423838060,0.308698,94519.0,94518.0,6e-07]
[1740423840024,0.308698,94519.0,94518.0,0.0020006]
[1740423840660,0.308698,94519.0,94518.0,0.0030006]
[1740423841681,0.50512289,94519.0,94518.0,6e-07]
[1740423842085,0.55472289,94519.0,94518.0,6e-07]
[1740423842287,0.15,94518.0,94497.0,0.3224]
[1740423842491,0.15,94518.0,94476.0,0.3224]
[1740423842492,0.158768,94477.0,94476.0,0.3224]
[1740423842675,0.158768,94477.0,94476.0,0.42504569]
[1740423843780,0.001,94477.0,94476.0,0.43017564]
[1740423844190,0.001,94477.0,94476.0,0.58894564]
[1740423844425,0.001,94477.0,94476.0,0.67434564]
[1740423844843,0.001,94477.0,94476.0,0.72164564]
[1740423845018,0.004,94519.0,94499.0,0.0756]
[1740423845331,0.158716,94509.0,94500.0,0.0473]
[1740423845544,0.15,94510.0,94501.0,0.10264569]
[1740423845734,0.308714,94510.0,94501.0,0.26137269]
[1740423845939,0.308714,94510.0,94501.0,0.10264569]
[1740423846478,0.0175565,94510.0,94501.0,0.10264569]
[1740423846680,0.158726,94502.0,94501.0,0.10264569]
[1740423847650,0.158726,94502.0,94501.0,0.10364569]
[1740423847828,0.158726,94502.0,94501.0,0.10264569]
[1740423848247,0.158726,94502.0,94501.0,0.10564569]
[1740423848827,0.211544,94543.0,94501.0,0.10564569]
[1740423849034,0.158702,94517.0,94501.0,0.10564569]
[1740423849230,0.15,94540.0,94507.0,0.158717]
[1740423849435,0.00801804,94528.0,94509.0,0.076]
[1740423849638,0.158696,94521.0,94512.0,0.158709]
[1740423849841,0.15,94525.0,94513.0,0.10264569]
[1740423850041,0.00801804,94528.0,94514.0,0.158705]
[1740423850261,0.002,94517.0,94515.0,0.10264569]
[1740423850517,0.002,94517.0,94515.0,0.10277564]
[1740423850706,0.158698,94520.0,94515.0,0.10277564]
[1740423852320,0.158698,94520.0,94515.0,0.10477564]
[1740423852496,0.211585,94525.0,94515.0,0.10477564]
[1740423852698,0.158698,94519.0,94515.0,0.10277564]
[1740423853120,0.158696,94520.0,94515.0,0.10377564]
[1740423853556,0.158698,94519.0,94515.0,0.10277564]
[1740423853765,0.158699,94519.0,94515.0,0.10277564]
[1740423854054,0.15,94528.0,94516.0,0.3224]
[1740423854252,0.158696,94521.0,94517.0,0.10264569]
[1740423854463,0.16868119,94535.0,94518.0,0.0799]
[1740423854659,0.01868119,94535.0,94519.0,0.15242686]
[1740423854868,0.0008489,94535.0,94519.0,0.15242686]
[1740423855036,0.0008489,94535.0,94531.0,0.0799]
[1740423855415,0.0008489,94535.0,94532.0,0.10264569]
[1740423855622,0.0008489,94535.0,94534.0,0.158673]
[1740423855834,0.0008489,94535.0,94534.0,0.26131869]
[1740423856038,0.0008489,94535.0,94534.0,0.25931869]
[1740423856238,0.0008489,94535.0,94534.0,0.10264569]
[1740423856647,0.0008489,94535.0,94534.0,0.10764569]
[1740423857258,0.0008489,94535.0,94534.0,0.10264569]
[1740423857499,0.0008489,94535.0,94534.0,0.10964569]
[1740423857697,0.0008489,94535.0,94534.0,0.11564569]
[1740423859752,0.0008489,94535.0,94534.0,1.2617995]
[1740423859962,0.017743,94553.0,94534.0,1.2617995]
[1740423859963,0.017743,94553.0,94552.0,0.158642]
[1740423860168,0.017743,94553.0,94552.0,0.71910769]
[1740423860413,0.00798448,94592.0,94553.0,0.0781]
[1740423860590,0.16820725,94578.0,94554.0,0.10264569]
[1740423860799,0.158604,94575.0,94554.0,0.10264569]
[1740423861019,0.01820725,94578.0,94561.0,0.158627]
[1740423861020,0.158603,94576.0,94561.0,0.158627]
[1740423861362,0.00128198,94569.0,94562.0,0.10264569]
[1740423861921,0.158624,94563.0,94562.0,0.10264569]
[1740423862296,0.158639,94554.0,94553.0,0.0781]
[1740423862502,0.158639,94554.0,94553.0,0.18074569]
[1740423862698,0.00128198,94569.0,94553.0,0.18074569]
[1740423862699,0.158616,94568.0,94553.0,0.18074569]
[1740423862926,0.158633,94558.0,94554.0,0.10264569]
[1740423863255,0.158637,94555.0,94554.0,0.10264569]
[1740423863497,0.158634,94557.0,94554.0,0.10264569]
[1740423863642,0.158637,94555.0,94554.0,0.10264569]
[1740423864332,0.158637,94555.0,94554.0,0.10664569]
[1740423864679,0.158637,94555.0,94554.0,0.004]
[1740423865517,0.158637,94555.0,94554.0,0.01]
[1740423865726,0.15810809,94555.0,94554.0,0.01]
[1740423866408,0.158637,94555.0,94554.0,0.01]
[1740423866824,0.00128198,94569.0,94554.0,0.11264569]
[1740423867035,0.00128198,94569.0,94556.0,0.0812]
[1740423867260,0.00128198,94569.0,94561.0,0.158626]
[1740423867465,0.00128198,94569.0,94562.0,0.10264569]
[1740423867671,0.00128198,94569.0,94564.0,0.211496]
[1740423867848,0.00128198,94569.0,94565.0,0.10264569]
[1740423868491,0.00128198,94569.0,94568.0,0.158616]
[1740423868630,0.00128198,94569.0,94568.0,0.33916169]
[1740423868836,0.00128198,94569.0,94568.0,0.18054569]
[1740423869355,0.00128198,94569.0,94568.0,0.33916169]
[1740423869738,0.158592,94583.0,94568.0,0.33916169]
[1740423869739,0.20800744,94587.0,94570.0,0.158612]
[1740423869936,0.15,94586.0,94571.0,0.42504569]
[1740423870135,0.158593,94582.0,94571.0,0.42504569]
[1740423870383,0.15,94586.0,94571.0,0.42504569]
[1740423870587,0.017907,94584.0,94571.0,0.58365569]
[1740423870741,0.00012987,94594.0,94571.0,0.42504569]
[1740423870742,0.158597,94579.0,94571.0,0.42504569]
[1740423870955,0.00012987,94594.0,94571.0,0.42504569]
[1740423871164,0.158596,94580.0,94571.0,0.42504569]
[1740423871365,0.211435,94592.0,94571.0,0.42504569]
[1740423871366,0.01786799,94594.0,94571.0,0.42504569]
[1740423871566,0.211436,94591.0,94571.0,0.42504569]
[1740423871784,0.158596,94580.0,94571.0,0.42504569]
[1740423872185,0.21145,94585.0,94571.0,0.42504569]
[1740423872417,0.00012987,94594.0,94593.0,0.07392956]
[1740423872553,0.00012987,94594.0,94593.0,0.17657525]
[1740423872954,0.15870187,94594.0,94593.0,0.17657525]
[1740423875991,0.00012987,94594.0,94593.0,0.17657525]
[1740423876190,0.15870187,94594.0,94593.0,0.17657525]
[1740423876614,0.15870187,94594.0,94593.0,0.17757525]
[1740423876775,0.00012987,94594.0,94593.0,0.17757525]
[1740423876969,0.15870187,94594.0,94593.0,0.10364569]
[1740423877176,0.15870187,94594.0,94593.0,0.001]
[1740423878222,0.15,94595.0,94593.0,0.001]
[1740423878422,0.158572,94594.0,94593.0,0.001]
[1740423878686,0.308572,94594.0,94593.0,0.001]
[1740423879292,0.158586,94586.0,94577.0,0.4007]
[1740423879500,0.211444,94588.0,94578.0,0.10264569]
[1740423879720,0.158586,94586.0,94578.0,0.10264569]
[1740423879934,0.15,94594.0,94578.0,0.10264569]
[1740423880339,0.158585,94587.0,94578.0,0.10264569]
[1740423880539,0.15,94594.0,94578.0,0.10264569]
[1740423880739,0.158591,94583.0,94578.0,0.10264569]
[1740423881199,0.36143,94594.0,94578.0,0.10264569]
[1740423881497,0.211444,94588.0,94578.0,0.10264569]
[1740423881716,0.158584,94587.0,94578.0,0.10264569]
[1740423881924,0.15,94594.0,94578.0,0.10264569]
[1740423882129,0.15859,94584.0,94578.0,0.10264569]
[1740423882283,0.158591,94583.0,94578.0,0.10264569]
[1740423882894,0.158589,94584.0,94578.0,0.10264569]
[1740423883100,0.15,94594.0,94578.0,0.10564569]
[1740423883523,0.1508482,94594.0,94578.0,0.10864569]
[1740423883734,0.158587,94585.0,94579.0,0.3224]
[1740423883939,0.1508482,94594.0,94580.0,0.10264569]
[1740423884113,0.211441,94589.0,94580.0,0.10264569]
[1740423884318,0.158589,94585.0,94580.0,0.10264569]
[1740423884516,0.158589,94584.0,94580.0,0.10264569]
[1740423884762,0.211448,94586.0,94580.0,0.10264569]
[1740423884959,0.158588,94585.0,94580.0,0.10264569]
[1740423885116,0.211432,94593.0,94580.0,0.10264569]
[1740423885336,0.158587,94586.0,94580.0,0.10264569]
[1740423885538,0.211432,94593.0,94580.0,0.10764569]
[1740423885745,0.158591,94583.0,94580.0,0.10764569]
[1740423886067,0.158591,94583.0,94580.0,0.10264569]
[1740423886274,0.158591,94583.0,94580.0,0.10464569]
[1740423886479,0.1508482,94594.0,94580.0,0.002]
[1740423886480,0.158094,94581.0,94580.0,0.002]
[1740423887457,0.308094,94581.0,94577.0,0.00012987]
[1740423887670,0.308599,94578.0,94577.0,0.00012987]
[1740423889400,0.308599,94578.0,94577.0,0.00112987]
[1740423890414,0.311599,94578.0,94577.0,0.00112987]
[1740423890617,0.311599,94578.0,94577.0,0.00012987]
[1740423890817,0.308599,94578.0,94577.0,0.00012987]
[1740423891038,0.309599,94578.0,94577.0,0.00012987]
[1740423891455,0.15,94578.0,94577.0,0.00012987]
[1740423891658,0.310599,94578.0,94577.0,0.00012987]
[1740423892441,0.310599,94578.0,94577.0,0.00212987]
[1740423892848,0.308599,94578.0,94577.0,0.00212987]
[1740423893116,0.308599,94578.0,94577.0,0.00414687]
[1740423893627,0.308599,94578.0,94577.0,0.08404687]
[1740423893903,0.15,94578.0,94577.0,0.08504687]
[1740423894102,0.308599,94578.0,94577.0,0.08504687]
[1740423894299,0.308599,94578.0,94577.0,0.08304687]
[1740423894501,0.308599,94578.0,94577.0,0.08504687]
[1740423895149,0.308599,94578.0,94577.0,0.00514687]
[1740423895762,0.4028961,94578.0,94577.0,0.00514687]
[1740423895917,0.4028961,94578.0,94577.0,0.00314687]
[1740423895918,0.308599,94578.0,94577.0,0.00314687]
[1740423896529,0.308599,94578.0,94577.0,0.00214687]
[1740423896952,0.308599,94578.0,94577.0,0.00384587]
[1740423897328,0.308599,94578.0,94577.0,0.00484587]
[1740423897563,0.311599,94578.0,94577.0,0.00484587]
[1740423897911,0.311599,94578.0,94577.0,0.00282887]
[1740423898319,0.308619,94566.0,94565.0,0.3092586]
[1740423898538,0.158639,94554.0,94553.0,0.3092586]
[1740423898742,0.158639,94554.0,94553.0,0.41190429]
[1740423899150,0.158639,94554.0,94553.0,0.3092586]
[1740423899345,0.308639,94554.0,94553.0,0.3092586]
[1740423899547,0.15,94554.0,94542.0,0.0814]
[1740423899771,0.15,94554.0,94536.0,0.0814]
[1740423899772,0.00012963,94554.0,94536.0,0.0814]
[1740423899973,0.158668,94537.0,94536.0,0.0814]
[1740423900770,0.158669,94536.0,94535.0,0.3092586]
[1740423901169,0.308669,94536.0,94535.0,0.3092586]
[1740423901959,0.17504271,94537.0,94536.0,0.002]
[1740423903275,0.158669,94536.0,94535.0,0.004]
[1740423903702,0.158669,94536.0,94535.0,0.002]
[1740423903928,0.158671,94535.0,94523.0,0.3906586]
[1740423904333,0.308671,94535.0,94518.0,0.0016978]
[1740423905103,0.40464257,94535.0,94518.0,0.0016978]
[1740423905323,0.40464257,94535.0,94534.0,0.0026976]
[1740423905525,0.308671,94535.0,94534.0,6e-07]
[1740423905734,0.40595375,94535.0,94534.0,6e-07]
[1740423906159,0.308671,94535.0,94534.0,6e-07]
[1740423906368,0.15,94535.0,94534.0,6e-07]
[1740423906639,0.15,94535.0,94534.0,0.0830006]
[1740423906995,0.308671,94535.0,94534.0,0.084]
[1740423907406,0.310671,94535.0,94534.0,0.083]
[1740423907576,0.154,94535.0,94534.0,0.083]
[1740423907776,0.310671,94535.0,94534.0,0.083]
[1740423908192,0.311671,94535.0,94534.0,0.083]
[1740423908987,0.158686,94526.0,94525.0,0.0761]
[1740423909427,0.158686,94526.0,94522.0,0.3092586]
[1740423909428,0.308691,94523.0,94522.0,0.3092586]
[1740423909633,0.4030341,94523.0,94522.0,0.3092586]
[1740423909831,0.308698,94519.0,94518.0,0.0016978]
[1740423910663,0.30878024,94519.0,94518.0,0.0016978]
[1740423911661,0.31278024,94519.0,94518.0,0.0016978]
[1740423912038,0.31078024,94519.0,94518.0,0.0016978]
[1740423913775,0.31178024,94519.0,94518.0,0.0016978]
[1740423914201,0.30978024,94519.0,94518.0,0.0016978]
[1740423914398,0.30878024,94519.0,94518.0,0.0016978]
[1740423914932,0.30978024,94519.0,94518.0,0.0016978]
[1740423915086,0.31078024,94519.0,94518.0,0.0016978]
[1740423915294,0.31178024,94519.0,94518.0,0.0016978]
[1740423917747,0.35540516,94519.0,94518.0,0.0016978]
[1740423917946,0.31078024,94519.0,94518.0,0.0016978]
[1740423918211,0.30878024,94519.0,94518.0,0.0016978]
[1740423918892,0.30978024,94519.0,94518.0,0.0016978]
[1740423920543,0.31078024,94519.0,94518.0,0.0016978]
[1740423923166,0.30978024,94519.0,94518.0,0.0016978]
[1740423923482,0.30978024,94519.0,94518.0,0.0036978]
[1740423923679,0.30878024,94519.0,94518.0,0.0036978]
[1740423923890,0.40391318,94519.0,94518.0,0.0016978]
[1740423924110,0.40391318,94519.0,94518.0,0.0036978]
[1740423924308,0.40491318,94519.0,94518.0,0.0036978]
[1740423924511,0.40491318,94519.0,94518.0,0.0016978]
[1740423924512,0.30878024,94519.0,94518.0,0.0016978]
[1740423925075,0.31078024,94519.0,94518.0,0.0016978]
[1740423925462,0.30978024,94519.0,94518.0,0.0016978]
[1740423925628,0.31078024,94519.0,94518.0,0.0016978]
[1740423927206,0.00208224,94519.0,94518.0,0.0833978]
[1740423927358,0.00208224,94519.0,94518.0,0.1301978]
[1740423927763,0.00108224,94519.0,94518.0,0.1301978]
[1740423928315,8.224e-05,94519.0,94518.0,0.70080109]
[1740423928442,0.1115,94591.0,94518.0,0.70080109]
[1740423928443,0.0452,94573.0,94519.0,0.0783]
[1740423928663,0.158658,94543.0,94535.0,0.16237291]
[1740423928852,0.1595189,94536.0,94535.0,0.2650186]
[1740423929291,0.1595189,94536.0,94535.0,0.16237291]
[1740423929533,0.1595189,94536.0,94535.0,0.0783]
[1740423930105,0.1625189,94536.0,94535.0,0.0783]
[1740423930754,0.1625189,94536.0,94535.0,0.0793]
[1740423930952,0.0008499,94536.0,94535.0,0.0783]
[1740423931157,0.0008499,94536.0,94535.0,0.18094569]